fUSD/lending_fUSD_20241225
["ID","MTS","AMOUNT","RATE_DAILY","PERIOD"]
[346663794,1735159853879,-183.53151,0.00012893,2]
[346663796,1735159853889,-183.53151,0.00012893,2]
[346663798,1735159853899,-711.5700648,0.00012893,2]
[346663800,1735159853907,-711.5700648,0.00012897,2]
[346663802,1735159853916,-318.255589,0.00012897,2]
[346663804,1735159853925,-318.255589,0.00012897,2]
[346663806,1735159853934,-500.0,0.00012899,2]
[346663808,1735159853943,-172.725395,0.00012899,2]
[346663810,1735159853952,-172.725395,0.00012899,2]
[346663812,1735159853961,-2294.05105765,0.000129,7]
[346663814,1735159853970,-711.5700648,0.000129,2]
[346663816,1735159853979,-276.898154,0.000129,2]
[346663818,1735159853988,-276.898154,0.000129,2]
[346663820,1735159853998,-14638.26385592,0.000129,2]
[346663822,1735159854010,-6929.57425249,0.000129,2]
[346663825,1735159854027,-4082.70739325,0.000129,2]
[346663827,1735159854039,-3658.48114649,0.000129,2]
[346663830,1735159854054,-5800.0,0.00012965,2]
[346663832,1735159854069,-500.0,0.00012973,2]
[346663835,1735159854084,-164.13508237,0.00012973,2]
[346663837,1735159854099,-161.92916357,0.00012973,2]
[346663840,1735159854111,-152.96570514,0.00012973,2]
[346663842,1735159854124,-500.0,0.00012973,2]
[346663845,1735159854139,-161.45846617,0.00012973,2]
[346663848,1735159854155,-165.55402308,0.00012973,2]
[346663850,1735159854171,-500.0,0.00012973,2]
[346663853,1735159854187,-509.49121964,0.00012973,2]
[346663856,1735159854201,-500.0,0.00012973,2]
[346663858,1735159854217,-162.89805031,0.00012973,2]
[346663860,1735159854230,-500.0,0.00012973,2]
[346663863,1735159854246,-514.18111003,0.00012973,2]
[346663865,1735159854260,-200.56771323,0.00012973,2]
[346663868,1735159854272,-260.14019383,0.00012973,2]
[346663870,1735159854288,-500.0,0.00012973,2]
[346663873,1735159854305,-500.0,0.00012973,2]
[346663875,1735159854316,-471.00258994,0.00012973,2]
[346663877,1735159854327,-159.78860805,0.00012973,2]
[346663880,1735159854343,-5800.0,0.00012974,2]
[346663883,1735159854356,-170112.95222447,0.0001298,2]
[346663887,1735159854384,-752.655,0.0001298,2]
[346663889,1735159854399,-5018.19846901,0.0001298,2]
[346663892,1735159854415,-9780.7,0.0001298,2]
[346663895,1735159854430,-23369.03246122,0.0001298,2]
[346663897,1735159854443,-151.0,0.0001298,2]
[346663899,1735159854455,-192.518823,0.0001298,2]
[346663902,1735159854467,-192.518823,0.0001298,2]
[346663904,1735159854480,-276.898154,0.0001298,2]
[346663907,1735159854493,-276.898154,0.0001298,2]
[346663909,1735159854505,-151.0,0.0001298,2]
[346663911,1735159854518,-1157.73962,0.0001298,2]
[346663914,1735159854530,-318.255589,0.0001298,2]
[346663916,1735159854543,-318.255589,0.0001298,2]
[346663918,1735159854555,-183.53151,0.0001298,2]
[346663921,1735159854568,-183.53151,0.0001298,2]
[346663923,1735159854580,-172.725395,0.0001298,2]
[346663925,1735159854592,-172.725393,0.0001298,2]
[346663928,1735159854604,-1438.9678599,0.00012981,2]
[346663930,1735159854617,-1570.8255415,0.00012981,2]
[346663933,1735159854629,-5908.4687293,0.00012981,2]
[346663935,1735159854641,-1802.4715365,0.00012981,2]
[346663937,1735159854655,-5800.0,0.00012982,2]
[346663940,1735159854669,-100000.00122252,0.0001299,2]
[346663942,1735159854681,-170.66817172,0.0001299,2]
[346663944,1735159854693,-5800.0,0.0001299,2]
[346663947,1735159854706,-1453.0008184,0.00012991,2]
[346663949,1735159854719,-1603.0611539,0.00012991,2]
[346663951,1735159854732,-6064.1469929,0.00012991,2]
[346663954,1735159854744,-1820.5036421,0.00012991,2]
[346663956,1735159854757,-1005.1345,0.00012999,2]
[346663958,1735159854768,-500.0,0.00012999,2]
[346663961,1735159854781,-500.0,0.00012999,2]
[346663963,1735159854794,-500.0,0.00012999,2]
[346663965,1735159854807,-500.0,0.00012999,2]
[346663968,1735159854819,-500.0,0.00012999,2]
[346663970,1735159854832,-500.0,0.00012999,2]
[346663972,1735159854844,-500.0,0.00012999,2]
[346663975,1735159854857,-177.90345102,0.00012999,2]
[346663977,1735159854869,-500.0,0.00012999,2]
[346663979,1735159854882,-5800.0,0.00012999,2]
[346663981,1735159854896,-13756.3349,0.00013,2]
[346663982,1735159854909,-350011.37388513,0.00013,2]
[346663983,1735159854924,-3779.0,0.00013,2]
[346663984,1735159854939,-2060.0,0.00013,2]
[346663985,1735159854953,-36108.9073469,0.00013,2]
[346663986,1735159854968,-18590.44461109,0.00013,2]
[346663991,1735159855002,-512073.51205422,0.00013,2]
[346664079,1735159855816,-500.0,0.00012523,2]
[346664081,1735159855825,-500.0,0.00012524,2]
[346664083,1735159855834,-544.96,0.00012524,2]
[346664085,1735159855843,-500.0,0.00012797,2]
[346664087,1735159855852,-500.0,0.00012798,2]
[346664089,1735159855861,-2260.59,0.00013,2]
[346664104,1735159856352,-295.29387136,0.00012523,2]
[346664105,1735159856910,-204.70612864,0.00012523,2]
[346664106,1735159856919,-631.71371594,0.00012523,2]
[346664107,1735159856931,-18.68628406,0.00012523,2]
[346664108,1735159856940,-500.0,0.00012523,2]
[346664109,1735159856950,-217.5115663,0.00012523,2]
[346664110,1735159856962,-316.2184337,0.00012523,2]
[346664111,1735159856971,-500.0,0.00012523,2]
[346664112,1735159856980,-500.0,0.00012523,2]
[346664113,1735159856989,-500.0,0.00012524,2]
[346664114,1735159856998,-500.0,0.00012524,2]
[346664115,1735159857007,-500.0,0.00012524,2]
[346664116,1735159857016,-151.0,0.00012524,2]
[346664117,1735159857026,-500.0,0.00012524,2]
[346664118,1735159857035,-500.0,0.00012524,2]
[346664119,1735159857044,-151.0,0.00012525,2]
[346664120,1735159857054,-151.0,0.00012525,2]
[346664121,1735159857063,-151.0,0.00012741,2]
[346664122,1735159857073,-500.0,0.00012797,2]
[346664123,1735159857083,-650.4,0.00012797,2]
[346664124,1735159857092,-500.0,0.00012797,2]
[346664125,1735159857102,-500.0,0.00012797,2]
[346664126,1735159857111,-500.0,0.00012798,2]
[346664127,1735159857120,-500.0,0.00012798,2]
[346664128,1735159857129,-500.0,0.00012798,2]
[346664129,1735159857138,-500.0,0.00012798,2]
[346664130,1735159857148,-500.0,0.00012798,2]
[346664131,1735159857158,-151.0,0.00012798,2]
[346664132,1735159857167,-212.25122728,0.00012824,2]
[346664133,1735159857176,-697.48845625,0.00013,2]
[346664134,1735160455119,600.0,0.00014,60]
[346664135,1735160807102,-291.04982291,9.758e-05,2]
[346664136,1735160945081,-176.20017709,9.758e-05,2]
[346664154,1735161031662,-203.86,0.00011274,2]
[346664155,1735161031672,-201.12,0.00011274,2]
[346664156,1735161031682,-201.0,0.00011274,2]
[346664157,1735161031691,-200.8,0.00011274,2]
[346664158,1735161031700,-201.94,0.00011274,2]
[346664159,1735161031709,-12904.94769046,0.00011274,2]
[346664160,1735161031719,-250.0,0.00011564,2]
[346664161,1735161031728,-23900.0,0.00011571,2]
[346664162,1735161031737,-250.0,0.00011576,2]
[346664163,1735161031748,-1000.0,0.00011587,2]
[346664164,1735161031757,-250.0,0.00011675,2]
[346664165,1735161031767,-4098.79,0.00011691,2]
[346664166,1735161031777,-200.36,0.00011857,2]
[346664167,1735161031790,-200.57,0.00011857,2]
[346664168,1735161031800,-201.53,0.00011857,2]
[346664169,1735161031809,-200.71,0.00011857,2]
[346664170,1735161031818,-203.41,0.00011857,2]
[346664171,1735161031827,-200.75,0.00011857,2]
[346664172,1735161031836,-202.67,0.00011857,2]
[346664173,1735161031845,-201.56,0.00011857,2]
[346664174,1735161031854,-203.53,0.00011857,2]
[346664175,1735161031863,-282.71,0.00011857,2]
[346664176,1735161031872,-467.25,0.00012022,2]
[346664177,1735161031882,-180.58,0.00012069,2]
[346664178,1735161031892,-336.175,0.0001235,2]
[346664179,1735161031901,-469.32,0.000124,2]
[346664180,1735161031910,-769.9,0.000124,2]
[346664181,1735161031920,-2438.11502378,0.00012423,2]
[346664182,1735161031929,-170.58741441,0.00012423,2]
[346664183,1735161031939,-2438.11502376,0.00012476,2]
[346664184,1735161031948,-2738.975,0.00012477,2]
[346664185,1735161031957,-161.965,0.00012477,2]
[346664186,1735161031967,-332.64920534,0.00012522,2]
[346664187,1735161031976,-350.12013744,0.00012522,2]
[346664188,1735161031987,-500.0,0.00012522,2]
[346664189,1735161031997,-283.10027114,0.00012522,2]
[346664190,1735161032008,-171.52046452,0.00012522,2]
[346664191,1735161032018,-520.31189855,0.00012522,2]
[346664192,1735161032028,-500.0,0.00012522,2]
[346664193,1735161032039,-606.2,0.00012523,2]
[346664194,1735161032049,-500.0,0.00012523,2]
[346664195,1735161032059,-519.27,0.00012523,2]
[346664197,1735161032068,-721.83,0.00012523,2]
[346664199,1735161032077,-500.0,0.00012523,2]
[346664201,1735161032086,-500.0,0.00012523,2]
[346664203,1735161032095,-500.0,0.00012523,2]
[346664205,1735161032105,-500.0,0.00012523,2]
[346664206,1735161032114,-500.0,0.00012523,2]
[346664208,1735161032123,-500.0,0.00012523,2]
[346664210,1735161032132,-500.0,0.00012523,2]
[346664212,1735161032141,-836.88,0.00012523,2]
[346664214,1735161032150,-500.0,0.00012523,2]
[346664216,1735161032159,-500.0,0.00012523,2]
[346664218,1735161032168,-1201.69,0.00012523,2]
[346664220,1735161032177,-488.55879446,0.00012523,2]
[346664222,1735161032186,-336.25407897,0.00012523,2]
[346664224,1735161032195,-500.0,0.00012523,2]
[346664226,1735161032204,-500.0,0.00012523,2]
[346664228,1735161032214,-360.77189647,0.00012523,2]
[346664230,1735161032223,-500.0,0.00012523,2]
[346664232,1735161032231,-450.22319133,0.00012523,2]
[346664234,1735161032240,-500.0,0.00012523,2]
[346664236,1735161032249,-500.0,0.00012523,2]
[346664238,1735161032259,-500.0,0.00012523,2]
[346664240,1735161032268,-500.0,0.00012523,2]
[346664242,1735161032277,-686.43,0.00012523,2]
[346664244,1735161032286,-500.0,0.00012523,2]
[346664246,1735161032295,-500.0,0.00012523,2]
[346664248,1735161032304,-500.0,0.00012523,2]
[346664250,1735161032313,-500.0,0.00012523,2]
[346664252,1735161032322,-500.0,0.00012523,2]
[346664254,1735161032331,-592.01,0.00012523,2]
[346664256,1735161032340,-500.0,0.00012523,2]
[346664258,1735161032349,-500.0,0.00012523,2]
[346664260,1735161032358,-500.0,0.00012523,2]
[346664262,1735161032368,-500.0,0.00012523,2]
[346664264,1735161032379,-500.0,0.00012523,2]
[346664265,1735161032389,-500.0,0.00012523,2]
[346664267,1735161032398,-500.0,0.00012523,2]
[346664269,1735161032407,-614.7,0.00012523,2]
[346664271,1735161032416,-500.0,0.00012523,2]
[346664273,1735161032425,-500.0,0.00012523,2]
[346664275,1735161032435,-500.0,0.00012523,2]
[346664277,1735161032444,-500.0,0.00012523,2]
[346664279,1735161032453,-500.0,0.00012523,2]
[346664281,1735161032463,-500.0,0.00012523,2]
[346664283,1735161032472,-500.0,0.00012523,2]
[346664286,1735161032481,-500.0,0.00012523,2]
[346664287,1735161032490,-500.0,0.00012523,2]
[346664289,1735161032499,-500.0,0.00012523,2]
[346664291,1735161032509,-500.0,0.00012523,2]
[346664293,1735161032518,-521.15485488,0.00012523,2]
[346664295,1735161032527,-500.0,0.00012523,2]
[346664297,1735161032536,-254.68957282,0.00012523,2]
[346664299,1735161032545,-500.0,0.00012523,2]
[346664301,1735161032555,-500.0,0.00012523,2]
[346664303,1735161032564,-500.0,0.00012523,2]
[346664305,1735161032573,-500.0,0.00012523,2]
[346664307,1735161032583,-500.0,0.00012523,2]
[346664309,1735161032592,-500.0,0.00012523,2]
[346664311,1735161032601,-976.72,0.00012523,2]
[346664313,1735161032610,-500.0,0.00012523,2]
[346664315,1735161032619,-500.0,0.00012523,2]
[346664317,1735161032633,-158.68377951,0.00012523,2]
[346664319,1735161032643,-500.0,0.00012523,2]
[346664321,1735161032651,-500.0,0.00012523,2]
[346664323,1735161032661,-500.0,0.00012523,2]
[346664325,1735161032670,-500.0,0.00012523,2]
[346664327,1735161032680,-346.25622743,0.00012523,2]
[346664329,1735161032689,-773.13,0.00012523,2]
[346664331,1735161032699,-500.0,0.00012523,2]
[346664333,1735161032707,-500.0,0.00012523,2]
[346664335,1735161032716,-500.0,0.00012523,2]
[346664337,1735161032726,-500.0,0.00012523,2]
[346664339,1735161032735,-500.0,0.00012523,2]
[346664341,1735161032744,-500.0,0.00012523,2]
[346664343,1735161032754,-500.0,0.00012523,2]
[346664345,1735161032764,-500.0,0.00012523,2]
[346664347,1735161032773,-500.0,0.00012523,2]
[346664349,1735161032783,-500.0,0.00012523,2]
[346664351,1735161032794,-500.0,0.00012523,2]
[346664353,1735161032803,-506.49,0.00012523,2]
[346664355,1735161032812,-500.0,0.00012523,2]
[346664357,1735161032821,-500.0,0.00012523,2]
[346664359,1735161032831,-1011.85,0.00012523,2]
[346664361,1735161032840,-500.0,0.00012523,2]
[346664363,1735161032849,-961.36,0.00012523,2]
[346664365,1735161032860,-500.0,0.00012523,2]
[346664367,1735161032868,-500.0,0.00012523,2]
[346664369,1735161032880,-500.0,0.00012523,2]
[346664371,1735161032889,-500.0,0.00012523,2]
[346664373,1735161032898,-500.0,0.00012523,2]
[346664375,1735161032907,-544.81,0.00012523,2]
[346664377,1735161032916,-500.0,0.00012523,2]
[346664379,1735161032925,-500.0,0.00012523,2]
[346664381,1735161032934,-500.0,0.00012523,2]
[346664383,1735161032943,-500.0,0.00012523,2]
[346664385,1735161032952,-500.0,0.00012523,2]
[346664387,1735161032961,-500.0,0.00012523,2]
[346664389,1735161032971,-500.0,0.00012523,2]
[346664391,1735161032980,-500.0,0.00012523,2]
[346664393,1735161032989,-500.0,0.00012523,2]
[346664395,1735161032998,-500.0,0.00012523,2]
[346664397,1735161033007,-500.0,0.00012523,2]
[346664399,1735161033016,-500.0,0.00012523,2]
[346664401,1735161033025,-500.0,0.00012523,2]
[346664403,1735161033034,-500.0,0.00012523,2]
[346664405,1735161033043,-500.0,0.00012523,2]
[346664407,1735161033053,-500.0,0.00012523,2]
[346664409,1735161033062,-500.0,0.00012523,2]
[346664411,1735161033071,-583.11361027,0.00012523,2]
[346664413,1735161033080,-500.0,0.00012523,2]
[346664415,1735161033089,-500.0,0.00012523,2]
[346664417,1735161033098,-500.0,0.00012523,2]
[346664419,1735161033107,-500.0,0.00012523,2]
[346664421,1735161033117,-500.0,0.00012523,2]
[346664423,1735161033126,-500.0,0.00012523,2]
[346664425,1735161033135,-500.0,0.00012523,2]
[346664427,1735161033144,-1118.17,0.00012523,2]
[346664429,1735161033153,-500.0,0.00012523,2]
[346664431,1735161033163,-500.0,0.00012523,2]
[346664433,1735161033172,-500.0,0.00012523,2]
[346664434,1735161033181,-500.0,0.00012523,2]
[346664436,1735161033191,-500.0,0.00012523,2]
[346664438,1735161033200,-500.0,0.00012523,2]
[346664441,1735161033210,-500.0,0.00012523,2]
[346664442,1735161033219,-500.0,0.00012523,2]
[346664444,1735161033229,-543.44,0.00012523,2]
[346664446,1735161033240,-500.0,0.00012523,2]
[346664448,1735161033249,-500.0,0.00012523,2]
[346664450,1735161033258,-633.21,0.00012523,2]
[346664452,1735161033268,-500.0,0.00012523,2]
[346664455,1735161033277,-500.0,0.00012523,2]
[346664456,1735161033286,-592.58,0.00012523,2]
[346664458,1735161033295,-500.0,0.00012523,2]
[346664460,1735161033305,-500.0,0.00012523,2]
[346664462,1735161033314,-500.0,0.00012523,2]
[346664464,1735161033323,-500.0,0.00012523,2]
[346664466,1735161033332,-723.35,0.00012523,2]
[346664468,1735161033341,-500.0,0.00012523,2]
[346664470,1735161033351,-500.0,0.00012523,2]
[346664472,1735161033360,-500.0,0.00012523,2]
[346664474,1735161033370,-500.0,0.00012523,2]
[346664476,1735161033381,-500.0,0.00012523,2]
[346664478,1735161033391,-500.0,0.00012523,2]
[346664480,1735161033401,-500.0,0.00012523,2]
[346664482,1735161033411,-816.2,0.00012523,2]
[346664484,1735161033420,-500.0,0.00012523,2]
[346664486,1735161033429,-519.56,0.00012523,2]
[346664488,1735161033440,-500.0,0.00012523,2]
[346664490,1735161033449,-500.0,0.00012523,2]
[346664492,1735161033460,-630.11,0.00012523,2]
[346664495,1735161033470,-500.0,0.00012523,2]
[346664497,1735161033480,-500.0,0.00012523,2]
[346664498,1735161033490,-500.0,0.00012523,2]
[346664499,1735161033499,-500.0,0.00012523,2]
[346664500,1735161033508,-962.82,0.00012523,2]
[346664501,1735161033518,-960.82,0.00012523,2]
[346664514,1735161033527,-500.0,0.00012523,2]
[346664518,1735161033728,-500.0,0.00012523,2]
[346664520,1735161033738,-500.0,0.00012523,2]
[346664522,1735161033748,-500.0,0.00012523,2]
[346664524,1735161033757,-500.0,0.00012523,2]
[346664526,1735161033767,-500.0,0.00012523,2]
[346664528,1735161033776,-500.0,0.00012523,2]
[346664530,1735161033787,-500.0,0.00012523,2]
[346664532,1735161033797,-508.56468473,0.00012523,2]
[346664534,1735161033807,-500.0,0.00012523,2]
[346664536,1735161033816,-500.0,0.00012523,2]
[346664538,1735161033826,-500.0,0.00012523,2]
[346664540,1735161033838,-500.0,0.00012523,2]
[346664542,1735161033846,-500.0,0.00012523,2]
[346664544,1735161033855,-500.0,0.00012523,2]
[346664546,1735161033866,-500.0,0.00012523,2]
[346664548,1735161033875,-500.0,0.00012523,2]
[346664550,1735161033885,-500.0,0.00012523,2]
[346664552,1735161033894,-500.0,0.00012523,2]
[346664554,1735161033904,-500.0,0.00012523,2]
[346664556,1735161033914,-500.0,0.00012523,2]
[346664558,1735161033923,-500.0,0.00012523,2]
[346664560,1735161033932,-500.0,0.00012523,2]
[346664562,1735161033941,-500.0,0.00012523,2]
[346664564,1735161033952,-500.0,0.00012523,2]
[346664566,1735161033961,-568.89,0.00012523,2]
[346664568,1735161033971,-516.99828635,0.00012523,2]
[346664570,1735161033980,-500.0,0.00012523,2]
[346664572,1735161033989,-500.0,0.00012523,2]
[346664574,1735161033998,-500.0,0.00012523,2]
[346664576,1735161034007,-500.0,0.00012523,2]
[346664578,1735161034017,-500.0,0.00012523,2]
[346664580,1735161034026,-500.0,0.00012523,2]
[346664582,1735161034035,-500.0,0.00012523,2]
[346664584,1735161034045,-500.0,0.00012523,2]
[346664586,1735161034054,-500.0,0.00012523,2]
[346664588,1735161034064,-500.0,0.00012523,2]
[346664590,1735161034073,-500.0,0.00012523,2]
[346664592,1735161034083,-500.0,0.00012523,2]
[346664594,1735161034093,-500.0,0.00012523,2]
[346664596,1735161034102,-500.0,0.00012523,2]
[346664598,1735161034111,-530.39564884,0.00012523,2]
[346664600,1735161034120,-153.939525,0.00012523,2]
[346664603,1735161034134,-155.940262,0.00012523,2]
[346664605,1735161034143,-1374.779732,0.00012523,2]
[346664606,1735161034153,-500.0,0.00012523,2]
[346664608,1735161034163,-500.0,0.00012523,2]
[346664611,1735161034173,-500.0,0.00012523,2]
[346664612,1735161034182,-500.0,0.00012523,2]
[346664614,1735161034191,-500.0,0.00012523,2]
[346664616,1735161034201,-500.0,0.00012523,2]
[346664619,1735161034210,-500.0,0.00012523,2]
[346664621,1735161034219,-1693.805137,0.00012523,2]
[346664622,1735161034229,-500.0,0.00012523,2]
[346664624,1735161034238,-500.0,0.00012523,2]
[346664626,1735161034247,-500.0,0.00012523,2]
[346664628,1735161034257,-500.0,0.00012523,2]
[346664630,1735161034267,-500.0,0.00012523,2]
[346664633,1735161034278,-500.0,0.00012523,2]
[346664635,1735161034288,-500.0,0.00012523,2]
[346664637,1735161034297,-500.0,0.00012523,2]
[346664639,1735161034307,-500.0,0.00012523,2]
[346664641,1735161034316,-500.0,0.00012523,2]
[346664643,1735161034325,-500.0,0.00012523,2]
[346664645,1735161034334,-500.0,0.00012523,2]
[346664647,1735161034343,-500.0,0.00012523,2]
[346664649,1735161034352,-500.0,0.00012523,2]
[346664651,1735161034362,-500.0,0.00012523,2]
[346664653,1735161034371,-500.0,0.00012523,2]
[346664655,1735161034383,-742.51,0.00012523,2]
[346664657,1735161034392,-500.0,0.00012523,2]
[346664659,1735161034401,-500.0,0.00012523,2]
[346664661,1735161034410,-500.0,0.00012523,2]
[346664663,1735161034419,-500.0,0.00012523,2]
[346664665,1735161034429,-500.0,0.00012523,2]
[346664667,1735161034438,-500.0,0.00012523,2]
[346664669,1735161034447,-500.0,0.00012523,2]
[346664671,1735161034457,-823.93,0.00012523,2]
[346664673,1735161034465,-500.0,0.00012523,2]
[346664675,1735161034474,-500.05,0.00012523,2]
[346664677,1735161034484,-500.0,0.00012523,2]
[346664679,1735161034493,-500.0,0.00012523,2]
[346664681,1735161034503,-500.0,0.00012523,2]
[346664683,1735161034512,-502.22983314,0.00012523,2]
[346664685,1735161034522,-500.0,0.00012523,2]
[346664686,1735161034531,-737.28,0.00012523,2]
[346664688,1735161034540,-500.0,0.00012523,2]
[346664690,1735161034549,-543.07,0.00012523,2]
[346664692,1735161034559,-500.0,0.00012523,2]
[346664694,1735161034569,-500.0,0.00012523,2]
[346664696,1735161034578,-500.0,0.00012523,2]
[346664698,1735161034587,-500.0,0.00012523,2]
[346664700,1735161034596,-500.0,0.00012523,2]
[346664702,1735161034605,-500.0,0.00012523,2]
[346664704,1735161034614,-500.0,0.00012523,2]
[346664706,1735161034623,-500.0,0.00012523,2]
[346664708,1735161034633,-500.0,0.00012523,2]
[346664710,1735161034642,-500.0,0.00012523,2]
[346664712,1735161034651,-500.0,0.00012523,2]
[346664714,1735161034660,-500.0,0.00012523,2]
[346664716,1735161034671,-752.94,0.00012523,2]
[346664718,1735161034682,-500.0,0.00012523,2]
[346664720,1735161034690,-1003.19,0.00012523,2]
[346664722,1735161034699,-500.0,0.00012523,2]
[346664724,1735161034709,-500.0,0.00012523,2]
[346664726,1735161034718,-500.0,0.00012523,2]
[346664728,1735161034727,-500.0,0.00012523,2]
[346664730,1735161034737,-500.0,0.00012523,2]
[346664732,1735161034746,-500.0,0.00012523,2]
[346664734,1735161034755,-500.0,0.00012523,2]
[346664738,1735161034787,-865.01,0.00012523,2]
[346664740,1735161034796,-500.0,0.00012523,2]
[346664742,1735161034806,-500.0,0.00012523,2]
[346664744,1735161034815,-500.0,0.00012523,2]
[346664746,1735161034824,-500.0,0.00012523,2]
[346664748,1735161034835,-500.0,0.00012523,2]
[346664749,1735161034844,-500.0,0.00012523,2]
[346664751,1735161034854,-500.0,0.00012523,2]
[346664753,1735161034865,-500.0,0.00012523,2]
[346664755,1735161034875,-500.0,0.00012523,2]
[346664757,1735161034885,-867.7,0.00012523,2]
[346664759,1735161034894,-500.0,0.00012523,2]
[346664761,1735161034903,-500.0,0.00012523,2]
[346664763,1735161034912,-500.0,0.00012523,2]
[346664765,1735161034923,-500.0,0.00012523,2]
[346664768,1735161034932,-500.0,0.00012523,2]
[346664770,1735161034942,-500.0,0.00012523,2]
[346664772,1735161034951,-500.0,0.00012523,2]
[346664773,1735161034960,-500.0,0.00012523,2]
[346664775,1735161034970,-500.0,0.00012523,2]
[346664776,1735161034979,-500.0,0.00012523,2]
[346664778,1735161034988,-500.0,0.00012523,2]
[346664779,1735161034998,-626.48,0.00012523,2]
[346664780,1735161035007,-500.0,0.00012523,2]
[346664781,1735161035016,-500.0,0.00012523,2]
[346664782,1735161035025,-500.0,0.00012523,2]
[346664783,1735161035034,-500.0,0.00012523,2]
[346664784,1735161035044,-500.0,0.00012523,2]
[346664785,1735161035053,-500.0,0.00012523,2]
[346664786,1735161035062,-572.43,0.00012523,2]
[346664787,1735161035072,-500.0,0.00012523,2]
[346664788,1735161035082,-500.0,0.00012523,2]
[346664789,1735161035092,-500.0,0.00012523,2]
[346664790,1735161035101,-500.0,0.00012523,2]
[346664791,1735161035111,-500.0,0.00012523,2]
[346664792,1735161035120,-586.92,0.00012523,2]
[346664793,1735161035129,-500.0,0.00012523,2]
[346664794,1735161035138,-500.0,0.00012523,2]
[346664795,1735161035147,-207.90237527,0.00012523,2]
[346664796,1735161035156,-500.0,0.00012523,2]
[346664797,1735161035166,-500.0,0.00012523,2]
[346664798,1735161035176,-500.0,0.00012523,2]
[346664799,1735161035185,-500.0,0.00012523,2]
[346664800,1735161035195,-500.0,0.00012523,2]
[346664801,1735161035204,-500.0,0.00012523,2]
[346664802,1735161035214,-500.0,0.00012523,2]
[346664803,1735161035224,-905.16,0.00012523,2]
[346664804,1735161035234,-500.0,0.00012523,2]
[346664805,1735161035244,-500.0,0.00012523,2]
[346664806,1735161035254,-500.0,0.00012523,2]
[346664807,1735161035264,-911.7,0.00012523,2]
[346664808,1735161035273,-500.0,0.00012523,2]
[346664809,1735161035282,-500.0,0.00012523,2]
[346664810,1735161035291,-500.0,0.00012523,2]
[346664811,1735161035300,-500.0,0.00012523,2]
[346664812,1735161035312,-500.0,0.00012523,2]
[346664813,1735161035321,-500.0,0.00012523,2]
[346664814,1735161035330,-402.73278071,0.00012523,2]
[346664815,1735161035339,-500.0,0.00012523,2]
[346664816,1735161035348,-500.0,0.00012523,2]
[346664817,1735161035358,-500.0,0.00012523,2]
[346664818,1735161035367,-500.0,0.00012523,2]
[346664819,1735161035377,-500.0,0.00012523,2]
[346664820,1735161035386,-500.0,0.00012523,2]
[346664821,1735161035395,-500.0,0.00012523,2]
[346664822,1735161035404,-500.0,0.00012523,2]
[346664823,1735161035414,-500.0,0.00012523,2]